[Event "IIFL Wealth 4th Mumbai Open"]
[Site "Mumbai"]
[Date "2019.01.04"]
[Round "6"]
[White "Ratnapriya K"]
[Black "Abhinessh, S."]
[Result "0-1"]
[ECO "B07"]
[WhiteElo "1508"]
[BlackElo "1790"]
[Annotator "NA"]
[PlyCount "88"]
[EventDate "2018.12.30"]
[EventType "swiss"]
[EventCountry "IND"]
[SourceTitle "playchess.com"]
[Source "ChessBase"]
[SourceQuality "1"]
[TimeControl "40/5400+30:1800+30"]

1. e4 {[%emt 0:00:00]} d6 {[%emt 0:00:00]} 2. d4 {[%emt 0:00:00]} Nf6 {[%emt 0:00:00]} 3. Nc3 {[%emt 0:00:01]} c6 {[%emt 0:00:00]} 4. Be3 {[%emt 0:00:36]} Qc7 {[%emt 0:00:24]} 5. f3 {[%emt 0:00:23]} e5 {[%emt 0:00:52]} 6. Qd2 {[%emt 0:00:48]} b5 {[%emt 0:03:18]} 7. Bd3 {[%emt 0:07:06]} a6 {[%emt 0:02:31]} 8. a4 {[%emt 0:07:06]} b4 {[%emt 0:03:36]} 9. Nd1 {[%emt 0:03:17]} c5 {[%emt 0:00:40]} 10. dxc5 {[%emt 0:01:43]} dxc5 {[%emt 0:00:08]} 11. b3 {[%emt 0:01:22]} Nc6 {[%emt 0:06:00]} 12. Nb2 {[%emt 0:00:56]} Be6 {[%emt 0:01:01]} 13. Ne2 {[%emt 0:04:52]} Na5 {[%emt 0:03:17]} 14. O-O {[%emt 0:04:34]} Be7 {[%emt 0:03:15]} 15. Ng3 {[%emt 0:03:54]} O-O {[%emt 0:03:18]} 16. Qe2 {[%emt 0:00:33]} Qc6 {[%emt 0:15:35]} 17. Nc4 {[%emt 0:01:16]} Bxc4 {[%emt 0:05:04]} 18. Bxc4 {[%emt 0:00:41]} Rfd8 {[%emt 0:01:10]} 19. Nf5 {[%emt 0:01:17]} Bf8 {[%emt 0:00:10]} 20. g4 {[%emt 0:08:16]} Nxc4 {[%emt 0:05:17]} 21. Qxc4 {[%emt 0:00:15]} Qe6 {[%emt 0:00:42]} 22. Qxe6 {[%emt 0:03:01]} fxe6 {[%emt 0:00:05]} 23. Ng3 {[%emt 0:00:19]} h6 {[%emt 0:04:38]} 24. g5 {[%emt 0:02:34]} hxg5 {[%emt 0:01:41]} 25. Bxg5 {[%emt 0:00:19]} c4 {[%emt 0:00:55]} 26. bxc4 {[%emt 0:03:42]} Rac8 {[%emt 0:01:05]} 27. Kh1 {[%emt 0:00:52]} Rxc4 {[%emt 0:02:14]} 28. Bxf6 {[%emt 0:00:30]} gxf6 {[%emt 0:00:07]} 29. Nh5 {[%emt 0:00:49]} Kf7 {[%emt 0:00:48]} 30. Rf2 {[%emt 0:01:33]} Rdc8 {[%emt 0:07:06]} 31. Ra2 {[%emt 0:01:42]} Rd4 {[%emt 0:00:26]} 32. Ra1 {[%emt 0:01:44]} Rdc4 {[%emt 0:05:38]} 33. Ra2 {[%emt 0:00:11]} Bh6 {[%emt 0:01:05]} 34. Rg2 {[%emt 0:03:00]} Rc3 {[%emt 0:00:34]} 35. Rb2 {[%emt 0:06:25]} a5 {[%emt 0:01:11]} 36. Rf2 {[%emt 0:01:39]} Bc1 {[%emt 0:01:00]} 37. Ra2 {[%emt 0:00:38]} Ra3 {[%emt 0:00:24]} 38. Rxa3 {[%emt 0:00:08]} bxa3 {[%emt 0:00:07]} 39. c3 {[%emt 0:00:35]} Bb2 {[%emt 0:00:09]} 40. Rf1 {[%emt 0:00:00]} a2 {[%emt 0:00:00]} 41. Ng3 {[%emt 0:00:32]} Rxc3 {[%emt 0:00:35]} 42. Ne2 {[%emt 0:00:25]} Rc1 {[%emt 0:00:06]} 43. Rxc1 {[%emt 0:00:11]} Bxc1 {[%emt 0:00:06]} 44. Nxc1 {[%emt 0:00:11]} a1=Q {[%emt 0:00:05]} 0-1

[Event "IIFL Wealth 4th Mumbai Open"]
[Site "Mumbai"]
[Date "2019.01.04"]
[Round "6"]
[White "Apoorv, Kamble"]
[Black "Shetye, Shyam"]
[Result "1/2-1/2"]
[ECO "B00"]
[WhiteElo "1458"]
[BlackElo "1685"]
[Annotator "NA"]
[PlyCount "92"]
[EventDate "2018.12.30"]
[EventType "swiss"]
[EventCountry "IND"]
[SourceTitle "playchess.com"]
[Source "ChessBase"]
[SourceQuality "1"]
[TimeControl "40/5400+30:1800+30"]

1. e4 {[%emt 0:00:00]} b6 {[%emt 0:00:00]} 2. d4 {[%emt 0:00:00]} Bb7 {[%emt 0:00:00]} 3. Nc3 {[%emt 0:00:25]} e6 {[%emt 0:00:00]} 4. Nf3 {[%emt 0:02:46]} Nf6 {[%emt 0:01:39]} 5. Bg5 {[%emt 0:00:38]} Be7 {[%emt 0:00:29]} 6. Bd3 {[%emt 0:01:21]} d5 {[%emt 0:06:33]} 7. e5 {[%emt 0:04:56]} Nfd7 {[%emt 0:01:16]} 8. Bxe7 {[%emt 0:00:38]} Qxe7 {[%emt 0:00:08]} 9. h4 {[%emt 0:00:04]} Ba6 {[%emt 0:03:32]} 10. g4 {[%emt 0:01:48]} Bxd3 {[%emt 0:17:10]} 11. Qxd3 {[%emt 0:00:02]} a6 {[%emt 0:01:43]} 12. Ne2 {[%emt 0:01:40]} Qb4+ {[%emt 0:01:47]} 13. c3 {[%emt 0:07:21]} Qxb2 {[%emt 0:04:18]} 14. Rb1 {[%emt 0:01:24]} Qxa2 {[%emt 0:01:54]} 15. Ng5 {[%emt 0:04:20]} Nc6 {[%emt 0:08:16]} 16. f4 {[%emt 0:01:24]} Qc4 {[%emt 0:06:27]} 17. Qf3 {[%emt 0:02:47]} h6 {[%emt 0:00:58]} 18. Nxf7 {[%emt 0:04:29]} Kxf7 {[%emt 0:00:49]} 19. f5 {[%emt 0:00:47]} Rhf8 {[%emt 0:02:07]} 20. Nf4 {[%emt 0:12:13]} Ndxe5 {[%emt 0:01:19]} 21. Qe3 {[%emt 0:13:00]} exf5 {[%emt 0:02:47]} 22. dxe5 {[%emt 0:01:59]} Nxe5 {[%emt 0:06:25]} 23. gxf5 {[%emt 0:01:23]} Qe4 {[%emt 0:01:03]} 24. Qxe4 {[%emt 0:00:49]} dxe4 {[%emt 0:00:16]} 25. Ne6 Rfc8 {[%emt 0:04:31]} 26. Ke2 {[%emt 0:01:24]} g6 {[%emt 0:00:12]} 27. Nd4 {[%emt 0:01:36]} gxf5 {[%emt 0:02:26]} 28. Nxf5 {[%emt 0:00:06]} Ng4 {[%emt 0:01:47]} 29. Rbf1 {[%emt 0:01:21]} Ke6 {[%emt 0:01:23]} 30. Rhg1 {[%emt 0:01:44]} Rg8 {[%emt 0:02:13]} 31. Nd4+ {[%emt 0:12:12]} Kd5 {[%emt 0:01:20]} 32. Nf5 {[%emt 0:00:52]} Rae8 {[%emt 0:02:21]} 33. Rxg4 {[%emt 0:00:23]} Rxg4 {[%emt 0:00:42]} 34. Ne3+ {[%emt 0:00:07]} Kc5 {[%emt 0:00:55]} 35. Rf5+ {[%emt 0:00:11]} Kd6 {[%emt 0:00:14]} 36. Nxg4 {[%emt 0:00:11]} a5 {[%emt 0:00:15]} 37. Nxh6 {[%emt 0:04:04]} a4 {[%emt 0:00:05]} 38. Nf7+ {[%emt 0:02:34]} Ke6 {[%emt 0:00:53]} 39. Rf1 {[%emt 0:00:13]} a3 {[%emt 0:01:29]} 40. h5 {[%emt 0:00:00]} a2 {[%emt 0:00:00]} 41. h6 {[%emt 0:03:32]} Ke7 {[%emt 0:03:50]} 42. Ne5 {[%emt 0:01:22]} Ra8 {[%emt 0:03:23]} 43. Ng6+ {[%emt 0:02:33]} Ke6 44. h7 Kd5 45. Nh8 Ke6 46. Ng6 Kd5 1/2-1/2

[Event "IIFL Wealth 4th Mumbai Open"]
[Site "Mumbai"]
[Date "2019.01.04"]
[Round "6"]
[White "Pawaar Sohum"]
[Black "Sunil, Vaidya"]
[Result "0-1"]
[ECO "B13"]
[WhiteElo "1359"]
[BlackElo "1663"]
[Annotator "NA"]
[PlyCount "66"]
[EventDate "2018.12.30"]
[EventType "swiss"]
[EventCountry "IND"]
[SourceTitle "playchess.com"]
[Source "ChessBase"]
[SourceQuality "1"]
[TimeControl "40/5400+30:1800+30"]

1. e4 {[%emt 0:00:00]} c6 {[%emt 0:00:10]} 2. d4 {[%emt 0:00:00]} d5 {[%emt 0:00:09]} 3. exd5 {[%emt 0:00:07]} cxd5 {[%emt 0:00:05]} 4. Bd3 {[%emt 0:00:17]} Nc6 {[%emt 0:00:29]} 5. c3 {[%emt 0:00:24]} Nf6 {[%emt 0:00:39]} 6. Bf4 {[%emt 0:01:09]} g6 {[%emt 0:01:01]} 7. Nf3 {[%emt 0:02:34]} Bg7 {[%emt 0:00:17]} 8. Nbd2 {[%emt 0:04:18]} O-O {[%emt 0:00:37]} 9. O-O {[%emt 0:02:34]} a6 {[%emt 0:01:41]} 10. a4 {[%emt 0:02:15]} Nh5 {[%emt 0:02:34]} 11. Bg5 {[%emt 0:01:49]} f6 {[%emt 0:00:58]} 12. Bh4 {[%emt 0:00:38]} Nf4 {[%emt 0:00:41]} 13. Bb1 {[%emt 0:02:29]} Rb8 {[%emt 0:03:36]} 14. Bg3 {[%emt 0:02:50]} Bh6 {[%emt 0:02:39]} 15. Re1 {[%emt 0:08:52]} b5 {[%emt 0:06:53]} 16. axb5 {[%emt 0:02:03]} axb5 {[%emt 0:02:13]} 17. h4 {[%emt 0:03:51]} b4 {[%emt 0:01:38]} 18. h5 {[%emt 0:08:06]} bxc3 {[%emt 0:02:49]} 19. bxc3 {[%emt 0:02:10]} Rb2 {[%emt 0:18:40]} 20. hxg6 {[%emt 0:06:04]} hxg6 {[%emt 0:03:10]} 21. Bxf4 {[%emt 0:03:00]} Bxf4 {[%emt 0:00:19]} 22. Bxg6 {[%emt 0:00:33]} Bg4 {[%emt 0:04:22]} 23. Bc2 {[%emt 0:05:30]} Qc7 {[%emt 0:04:35]} 24. Nb3 {[%emt 0:13:58]} Bh2+ {[%emt 0:07:33]} 25. Kh1 {[%emt 0:04:32]} Bf4 {[%emt 0:03:53]} 26. Qd3 {[%emt 0:01:39]} f5 {[%emt 0:00:57]} 27. Nc5 {[%emt 0:02:11]} e5 {[%emt 0:02:24]} 28. dxe5 {[%emt 0:02:17]} Qh7+ {[%emt 0:02:47]} 29. Kg1 {[%emt 0:00:19]} Bxf3 {[%emt 0:05:59]} 30. gxf3 {[%emt 0:00:58]} Qh3 {[%emt 0:01:28]} 31. Qxd5+ {[%emt 0:08:57]} Kh8 {[%emt 0:01:31]} 32. Nd3 {[%emt 0:01:21]} Qh2+ {[%emt 0:01:33]} 33. Kf1 {[%emt 0:00:12]} Rxc2 {[%emt 0:00:21]} 0-1